[Event "1st Jeddah Young Masters 2024"]
[Site "Jeddah"]
[Date "2024.01.25"]
[Round "2.2"]
[White "Oro, Faustino"]
[Black "Erdogmus, Yagiz Kaan"]
[Result "0-1"]
[ECO "C55"]
[WhiteElo "2357"]
[BlackElo "2524"]
[Annotator "TA"]
[PlyCount "114"]
[EventDate "2024.01.24"]
[EventType "tourn"]
[SourceTitle "playchess.com"]
[Source "ChessBase"]
[SourceQuality "1"]
[TimeControl "5400+30"]

{[%evp 28,114,14,10,31,0,0,0,11,0,2,-85,-107,-106,-110,-108,-103,-95,-67,-70,-77,-194,-200,-175,-185,-196,-168,-206,-54,-61,-63,-66,0,-85,-98,-102,-105,-109,-104,-100,-95,-103,-105,-96,-105,-105,-105,-102,-108,-95,-52,-146,-58,-179,-175,-299,-276,-315,-290,-277,-258,-344,-350,-370,-341,-388,-395,-399,-315,-316,-329,-300,-238,-427,-263,-458,-440,-914,-872,-4886,-4894,-4886,-2318,-4810,-4810,-1194,-895,-729,-539]} 1. e4 {[%emt 0:00:01]} e5 {[%emt 0:00:07]} 2. Nf3 {[%emt 0:00:19]} Nc6 {[%emt 0:00:05]} 3. Bc4 {[%emt 0:02:06]} Nf6 {[%emt 0:00:31]} 4. d3 {[%emt 0:00:26]} h6 {[%emt 0:06:05]} 5. O-O {[%emt 0:01:44]} d6 {[%emt 0:00:51]} 6. a4 {[%emt 0:01:31]} g5 {[%emt 0:01:39]} 7. c3 {[%emt 0:06:54]} Bg7 {[%emt 0:10:43]} 8. Nbd2 {[%emt 0:10:47]} O-O {[%emt 0:13:38]} 9. h3 {[%emt 0:12:56]} Ne7 {[%emt 0:09:22]} 10. Re1 {[%emt 0:04:21]} Ng6 {[%emt 0:02:59]} 11. Nf1 {[%emt 0:04:31]} c6 {[%emt 0:04:42]} 12. Bb3 {[%emt 0:03:57]} Re8 {[%emt 0:07:55]} 13. N3h2 {[%emt 0:10:50]} d5 {[%emt 0:11:19]} 14. Ng3 {[%emt 0:02:29]} Be6 {[%emt 0:06:49]} 15. Ng4 {[%emt 0:02:16]} Qd7 {[%emt 0:02:55]} 16. Nxf6+ {[%emt 0:09:33]} Bxf6 {[%emt 0:00:02]} 17. Be3 {[%emt 0:02:39]} Nh4 {[%emt 0:03:30]} 18. Kh2 {[%emt 0:01:01]} Bg7 {[%emt 0:03:02]} 19. d4 {[%emt 0:04:12]} (19. a5 $11) 19... dxe4 $17 {[%emt 0:00:57]} 20. Nxe4 {[%emt 0:03:06]} Bd5 {[%emt 0:02:56]} 21. f3 {[%emt 0:05:54]} Qc7 {[%emt 0:03:38]} 22. Kh1 {[%emt 0:01:30]} exd4 {[%emt 0:04:46]} (22... Nf5 {seems wilder.} 23. Bf2 exd4 24. cxd4 Qb6) 23. Bxd4 {[%emt 0:00:36]} Bxd4 {[%emt 0:01:03]} 24. Qxd4 {[%emt 0:03:08]} (24. cxd4 $17 Re6 25. Rc1) 24... Rxe4 $19 {[%emt 0:01:18]} (24... Bxb3 $2 25. Nf6+ Kf8 26. Nxe8 $18) 25. Rxe4 {[%emt 0:00:44]} Bxb3 {[%emt 0:02:08]} 26. Rae1 {[%emt 0:02:05]} Be6 {[%emt 0:00:00]} 27. Qf6 {[%emt 0:00:51]} Qd8 $2 {[%emt 0:00:02]} (27... Qg3 $19 {[%csl Gh4][%cal Rg3g2]} 28. R1e2 Rf8 29. Qxh6 Rd8) 28. Rxe6 $1 $15 {[%emt 0:01:32]} fxe6 {[%emt 0:00:05]} 29. Qxh6 {[%emt 0:00:06]} Qe7 {[%emt 0:01:04]} (29... Kf7 $15 30. Qxe6+ Kg7) 30. Re5 {[%emt 0:00:21]} (30. Rxe6 $11 Qg7 31. Qh5) 30... Nf5 $17 {[%emt 0:00:19]} 31. Qg6+ {[%emt 0:00:04] [#]} Ng7 $1 {[%emt 0:00:08]} 32. Rxg5 {[%emt 0:00:05]} Rd8 {[%emt 0:00:30]} 33. h4 {[%emt 0:01:08]} Rd5 {[%emt 0:00:31]} 34. Rg4 {[%emt 0:00:33]} Qf7 {[%emt 0:00:37]} 35. Qh6 {[%emt 0:00:19]} Rd1+ {[%emt 0:00:37]} 36. Kh2 {[%emt 0:00:01]} Qc7+ {[%emt 0:00:42]} 37. f4 {[%emt 0:00:26]} Qf7 {[%emt 0:00:32]} 38. Rg6 {[%emt 0:01:59]} Rd5 {[%emt 0:00:31]} 39. h5 {[%emt 0:01:08] [#]} ({White should play} 39. c4 $1 $15 Rc5 40. h5) 39... Qe7 {[%emt 0:00:35]} (39... b5 $1 $17 40. a5 Qe7) 40. Rg4 {[%emt 0:00:59]} (40. Kh3 $1 $15) 40... Rf5 $19 {[%emt 0:00:35]} (40... Qf7 41. Rg6 $17) 41. Qg6 {[%emt 0:00:46]} (41. Rg6 {might work better.}) 41... Rf6 {[%emt 0:00:20]} 42. Qg5 {[%emt 0:00:36]} Kh7 {[%emt 0:00:08]} 43. Kg1 {[%emt 0:00:26]} Qf7 {[%emt 0:00:11]} 44. Qe5 {[%emt 0:00:32]} Rf5 {[%emt 0:00:34]} ({Don't play} 44... Nxh5 45. Rh4 Rf5 (45... Rxf4 $2 46. Rxh5+ $18) 46. Qe3) 45. Qd4 {[%emt 0:00:31]} Nxh5 {[%emt 0:01:12]} ({And not} 45... Qxh5 46. Qxg7#) 46. Rh4 {[%emt 0:00:22]} Rd5 {[%emt 0:00:39]} ({Weaker is} 46... Rxf4 47. Rxh5+ Qxh5 48. Qxf4 $11) 47. Qxa7 {[%emt 0:00:49]} Qe7 {[%emt 0:00:33]} 48. Qf2 {[%emt 0:00:14]} Kg8 {[%emt 0:00:13]} 49. c4 {[%emt 0:00:18]} Rf5 {[%emt 0:00:25]} 50. Rg4+ $2 {[%emt 0:00:15]} (50. g3) 50... Kf8 {[%emt 0:00:30]} 51. Qd2 $2 {[%emt 0:01:02]} (51. g3) 51... Nf6 $19 {[%emt 0:00:22]} 52. Rg6 {[%emt 0:00:45]} (52. Rg5 $142) 52... Qc5+ $19 {[%emt 0:00:15]} 53. Kf1 {[%emt 0:00:29]} Qxc4+ {[%emt 0:00:04]} 54. Kg1 {[%emt 0:00:01]} Qc5+ {[%emt 0:00:51]} 55. Kf1 {[%emt 0:00:02]} Kf7 {[%emt 0:00:24]} 56. Rg3 {[%emt 0:00:39]} Qc4+ {[%emt 0:00:04]} 57. Kg1 {[%emt 0:00:09]} Qxf4 {[%emt 0:00:16]} 0-1

[Event "1st Jeddah Young Masters 2024"]
[Site "Jeddah"]
[Date "2024.01.25"]
[Round "2.3"]
[White "Pranav Vijay"]
[Black "Sadhwani, Raunak"]
[Result "1/2-1/2"]
[ECO "C65"]
[WhiteElo "2252"]
[BlackElo "2654"]
[Annotator "TA"]
[PlyCount "70"]
[EventDate "2024.01.24"]
[EventType "tourn"]
[SourceTitle "playchess.com"]
[Source "ChessBase"]
[SourceQuality "1"]
[TimeControl "5400+30"]

{[%evp 11,70,22,22,12,30,12,4,2,12,6,0,0,16,0,14,0,16,16,15,23,37,36,18,14,46,43,47,42,55,55,41,38,40,36,46,17,22,17,49,56,66,0,33,30,29,12,12,12,13,13,15,2,8,8,8,8,8,10,7,4,10]} 1. e4 {[%emt 0:00:05]} e5 {[%emt 0:00:05]} 2. Nf3 {[%emt 0:00:07]} Nc6 {[%emt 0:00:04]} 3. Bb5 {[%emt 0:00:09]} Nf6 {[%emt 0:00:06]} 4. d3 {[%emt 0:00:14][%cal Bd2d3,Bd3d4][%mdl 32] EV=19.09} Bc5 {[%emt 0:00:07]} 5. c3 {[%emt 0:00:07]} d6 {[%emt 0:02:17]} 6. O-O {[%emt 0:00:39]} O-O {[%emt 0:00:06]} 7. Re1 {[%emt 0:00:23]} Bb6 {[%emt 0:02:22]} 8. a4 {[%emt 0:01:04]} Ne7 {[%emt 0:01:37] OK} 9. d4 {[%emt 0:06:20] [#] a5 is the strong threat. OK} c6 {[%emt 0:00:14] OK} 10. Bd3 {[%emt 0:05:20] OK} Ng6 {[%emt 0:00:52]} 11. h3 {[%emt 0:03:26] Prevents Bg4.} Bc7 {[%emt 0:13:29]} 12. Nbd2 {[%emt 0:17:29] OK} Re8 {[%emt 0:00:28] OK} 13. dxe5 {[%emt 0:07:46]} Nxe5 {[%emt 0:05:34]} 14. Nxe5 {[%emt 0:00:53]} dxe5 {[%emt 0:00:12]} 15. Bc4 {[%emt 0:00:45] OK} Be6 {[%emt 0:02:12]} 16. Bxe6 {[%emt 0:02:58] OK} Rxe6 {[%emt 0:00:07]} 17. Qe2 {[%emt 0:07:01] Wards off Qd3} Nd7 {[%emt 0:01:21][%cal Bf6d7,Bd7c5,Bc5b3,Bb3c1][%mdl 32] EV=22.43. Inaccurate} 18. Nc4 {[%emt 0:01:29] OK} Nc5 {[%emt 0:10:14]} 19. b4 {[%emt 0:03:55] OK} Nb3 {[%emt 0:00:09] OK} 20. Rb1 {[%emt 0:00:26] OK} Nxc1 {[%emt 0:00:05] OK} 21. Rexc1 {[%emt 0:00:07]} Re8 {[%emt 0:00:45] OK} 22. Rd1 {[%emt 0:00:23] OK} Qe7 {[%emt 0:00:06] OK} 23. a5 {[%emt 0:01:15] Inaccurate} Rad8 {[%emt 0:08:06] OK} 24. Qe3 {[%emt 0:02:04]} Bb8 {[%emt 0:00:05] Inaccurate} 25. Qc5 {[%emt 0:05:27] OK} Qh4 {[%emt 0:02:31]} 26. Qe3 {[%emt 0:03:10] White is more active. Mistake (0.7)} ({Better is} 26. a6 $14) 26... Qf4 {[%emt 0:05:05] Inaccurate} 27. Qe2 {[%emt 0:03:20]} Qf6 {[%emt 0:02:55] OK} 28. Qg4 {[%emt 0:02:03]} Bc7 {[%emt 0:02:54] OK. The position is equal.} 29. Rd7 {[%emt 0:03:12] OK} h5 {[%emt 0:06:21] OK} 30. Rxd8 {[%emt 0:00:10] OK} (30. Qxh5 $2 {is the wrong capture.} Rxd7 31. Rc1 Rd3 $19) 30... Qxd8 {[%emt 0:00:09]} 31. Qe2 {[%emt 0:01:17][%cal Ob1d1]} Qd7 {[%emt 0:02:28]} 32. Rd1 {[%emt 0:00:57]} Qe6 {[%emt 0:00:18] OK} 33. Ne3 {[%emt 0:00:31]} g6 {[%emt 0:00:31] OK} 34. Qc4 {[%emt 0:00:53] OK} Qxc4 {[%emt 0:00:07] OK} 35. Nxc4 {[%emt 0:00:05][%cal Oa5a6]} Kf8 {[%emt 0:00:12] Weighted Error Value: White=0.08 (flawless) /Black=0.07 (flawless) . OK.  Mistake:       	White=1     	---        Inaccurate:     	White=1     	Black=3      OK:         	White=13    	Black=15} 1/2-1/2

[Event "1st Jeddah Young Masters 2024"]
[Site "Jeddah"]
[Date "2024.01.25"]
[Round "2.4"]
[White "Francisco Guecamburu, Candela Be"]
[Black "Rey Martinez, Jaime"]
[Result "1-0"]
[ECO "B31"]
[WhiteElo "2295"]
[BlackElo "2342"]
[Annotator "TA"]
[PlyCount "61"]
[EventDate "2024.01.24"]
[EventType "tourn"]
[SourceTitle "playchess.com"]
[Source "ChessBase"]
[SourceQuality "1"]
[TimeControl "5400+30"]

{[%evp 17,61,31,36,33,37,17,17,21,6,0,32,0,18,27,28,-19,-14,-25,58,0,0,0,17,14,13,16,28,-78,-82,-166,-177,-199,39,43,83,75,554,553,545,549,548,541,543,527,520,88]} 1. e4 {[%emt 0:00:10]} c5 {[%emt 0:00:30]} 2. Nf3 {[%emt 0:00:34]} Nc6 {[%emt 0:00:29]} 3. Bb5 {[%emt 0:00:19]} g6 {[%emt 0:00:18]} 4. Bxc6 {[%emt 0:00:14]} bxc6 {[%emt 0:00:12]} 5. O-O {[%emt 0:00:31]} Bg7 {[%emt 0:00:19]} 6. Re1 {[%emt 0:00:39]} Nh6 {[%emt 0:01:36]} 7. c3 {[%emt 0:01:22]} O-O {[%emt 0:01:00]} 8. d4 {[%emt 0:00:21]} cxd4 {[%emt 0:00:33]} 9. cxd4 {[%emt 0:00:11]} d5 {[%emt 0:00:09]} 10. e5 {[%emt 0:00:22]} f6 {[%emt 0:00:11] OK} 11. exf6 {[%emt 0:06:31]} exf6 {[%emt 0:00:06]} 12. h3 {[%emt 0:01:49] The position is equal.} Nf7 {[%emt 0:02:07][%cal Bh6f7,Bf7d6,Bd6c4][%mdl 32] EV=20.21} 13. Nc3 {[%emt 0:03:55]} Nd6 {[%emt 0:05:46] Inaccurate} 14. Qa4 {[%emt 0:11:39] Inaccurate} Qb6 {[%emt 0:08:57]} 15. Bf4 {[%emt 0:02:38] OK} Nc4 {[%emt 0:02:36] OK} 16. b4 {[%emt 0:07:47] Mistake (0.5)} (16. Nd1 {was preferrable.}) 16... g5 {[%emt 0:02:07]} 17. Bg3 {[%emt 0:07:17]} f5 {[%emt 0:06:35] Mistake (0.8)} (17... Qb7 $11) 18. Be5 {[%emt 0:14:14] Mistake (0.6)} (18. Nxg5 $14 f4 19. Bh4) 18... Bh6 $1 $11 {[%emt 0:14:45] ...g4 would now be deadly. Strong} 19. b5 $36 {[%emt 0:08:40][%mdl 2048] White has the initiative. OK} Bd7 {[%emt 0:03:37]} 20. bxc6 {[%emt 0:03:37] OK} Bxc6 {[%emt 0:00:19]} 21. Qc2 {[%emt 0:01:07] OK} Rac8 {[%emt 0:09:03]} 22. Nd2 {[%emt 0:08:10] Mistake (1.1)} (22. Bh2 $11 {remains equal.} Qd8 23. Re6) 22... Nxe5 $17 {[%emt 0:06:44] Best (Easy)} 23. Rxe5 {[%emt 0:00:16] Mistake (0.8)} (23. dxe5 $17 {was the only chance.} d4 24. Ne2) 23... Qxd4 $19 {[%emt 0:01:20] OK} 24. Nf3 {[%emt 0:00:47] OK} Qf4 {[%emt 0:03:03] Missed win (2.4)} ({Better is} 24... Qc4 $19 25. Qd2 Bg7) 25. Ne2 $14 {[%emt 0:03:12][%mdl 1024] White has compensation. OK} Qc4 {[%emt 0:00:19] Inaccurate} 26. Qd2 {[%emt 0:00:13][%cal Oa1c1] [#] Strongly threatening Rc1! OK} Qc5 {[%emt 0:09:27][%mdl 8192] This move loses the game for Black. Loses game (4.8)} (26... Bb5 $16 {is tougher.}) 27. Re6 $18 {[%emt 0:01:53] Best. White is clearly winning.} (27. Nxg5 Qd6 28. Qe3 (28. Re6 $2 Qxe6 29. Nxe6 Bxd2 $19) 28... Qg6 $17) 27... Bg7 {[%emt 0:03:03] OK} 28. Rc1 {[%emt 0:00:07] OK} (28. Qxg5 Bd7 29. Re7 Rf7 30. Rxf7 Kxf7 31. Qh5+ Kf8 $16) 28... Qb6 {[%emt 0:02:30] [#] OK} 29. Rexc6 {[%emt 0:00:33][%mdl 512] OK} Rxc6 {[%emt 0:00:13]} 30. Qxd5+ {[%emt 0:00:11] Best (Easy)} Re6 {[%emt 0:00:01] aiming for ...Kh8. OK} 31. Ned4 $2 {[%emt 0:01:32] Weighted Error Value: White=0.20 (precise) /Black=0.62. Missed win (4.3).  Loses game:     	---       	Black=1      Missed win:     	White=1     	Black=1      Mistake:       	White=4     	Black=1      Inaccurate:     	White=1     	Black=2      OK:         	White=9     	Black=6      Best:        	White=2     	Black=1      Strong:       	---       	Black=1} (31. Nxg5 $18 {and the rest is easy.} Rfe8 32. g3 (32. Nxe6 Qxe6 33. Qxe6+ Rxe6 $16)) 1-0

[Event "1st Jeddah Young Masters 2024"]
[Site "Jeddah"]
[Date "2024.01.25"]
[Round "2.5"]
[White "Klimkowski, Jan"]
[Black "Seemann, Jakub"]
[Result "0-1"]
[ECO "B90"]
[WhiteElo "2531"]
[BlackElo "2439"]
[Annotator "RC"]
[PlyCount "76"]
[EventDate "2024.01.24"]
[EventType "tourn"]
[SourceTitle "playchess.com"]
[Source "ChessBase"]
[SourceQuality "1"]
[TimeControl "5400+30"]

1. e4 {[%emt 0:00:04]} c5 {[%emt 0:00:07]} 2. Nf3 {[%emt 0:00:05]} d6 {[%emt 0:00:03]} 3. d4 {[%emt 0:00:07]} cxd4 {[%emt 0:00:03]} 4. Nxd4 {[%emt 0:00:04]} Nf6 {[%emt 0:00:05]} 5. Nc3 {[%emt 0:00:06]} a6 {[%emt 0:00:03]} 6. Bd3 {[%emt 0:01:24]} e5 {[%emt 0:00:05]} 7. Nde2 {[%emt 0:00:06]} Be7 {[%emt 0:00:09]} 8. O-O {[%emt 0:00:08]} O-O {[%emt 0:00:05]} 9. Ng3 {[%emt 0:00:18]} Be6 {[%emt 0:00:07]} 10. Nd5 {[%emt 0:00:34]} Bxd5 {[%emt 0:00:06]} 11. exd5 {[%emt 0:00:05]} g6 {[%emt 0:00:09]} 12. c4 {[%emt 0:00:12]} Nbd7 {[%emt 0:00:08]} 13. Kh1 {[%emt 0:00:27]} Rb8 {[%emt 0:00:11]} 14. f4 {[%emt 0:08:01]} b5 {[%emt 0:17:48]} 15. b3 {[%emt 0:05:23]} exf4 {[%emt 0:11:15]} 16. Bxf4 {[%emt 0:00:51]} Ne5 {[%emt 0:00:16]} 17. Bxe5 {[%emt 0:08:05]} dxe5 {[%emt 0:00:19]} 18. Qe2 {[%emt 0:00:14]} Bd6 {[%emt 0:16:50]} 19. Rac1 {[%emt 0:13:58]} bxc4 {[%emt 0:01:09]} 20. bxc4 {[%emt 0:01:57]} Nd7 {[%emt 0:03:09]} 21. Ne4 {[%emt 0:07:58]} Ba3 {[%emt 0:03:33]} 22. Rb1 {[%emt 0:05:59]} Rxb1 {[%emt 0:00:47]} 23. Bxb1 {[%emt 0:00:54]} f5 {[%emt 0:00:21]} 24. Nd2 {[%emt 0:00:55]} Qe7 {[%emt 0:06:17]} 25. Nb3 {[%emt 0:45:05]} h5 {[%emt 0:08:36]} 26. Na5 {[%emt 0:00:00]} Bd6 {[%emt 0:01:46]} 27. Nc6 {[%emt 0:00:00]} Qf6 {[%emt 0:00:35]} 28. Qe3 {[%emt 0:00:00]} Nc5 {[%emt 0:02:48]} 29. Bc2 {[%emt 0:00:00]} e4 {[%emt 0:05:02]} 30. g3 {[%emt 0:00:00]} Rf7 {[%emt 0:02:09]} 31. Nd4 {[%emt 0:00:00]} h4 {[%emt 0:02:53]} 32. Ne6 {[%emt 0:00:00]} hxg3 {[%emt 0:00:29]} 33. hxg3 {[%emt 0:00:00]} Rh7+ {[%emt 0:01:20]} 34. Kg1 {[%emt 0:00:00]} Nxe6 {[%emt 0:01:37]} 35. dxe6 {[%emt 0:00:00]} Rh3 {[%emt 0:00:07]} 36. Qa7 {[%emt 0:00:00]} Rxg3+ {[%emt 0:00:27]} 37. Kf2 {[%emt 0:00:00]} Rg2+ {[%emt 0:00:23]} 38. Kxg2 {[%emt 0:00:00]} Qg5+ {[%emt 0:00:05]} 0-1

[Event "1st Jeddah Young Masters 2024"]
[Site "Jeddah"]
[Date "2024.01.25"]
[Round "3.1"]
[White "Seemann, Jakub"]
[Black "Murzin, Volodar"]
[Result "1-0"]
[ECO "B48"]
[WhiteElo "2439"]
[BlackElo "2635"]
[Annotator "TA"]
[PlyCount "91"]
[EventDate "2024.01.24"]
[EventType "tourn"]
[SourceTitle "playchess.com"]
[Source "ChessBase"]
[SourceQuality "1"]
[TimeControl "5400+30"]

{[%evp 14,91,40,15,16,8,31,31,48,46,40,34,54,41,43,38,109,93,130,93,122,87,81,10,41,70,69,41,31,60,58,41,32,55,56,50,52,47,36,34,49,38,41,43,134,127,129,122,146,113,210,165,170,154,145,141,232,239,204,54,208,209,319,320,325,348,358,359,453,441,542,522,836,810,3772,2290,4810,860,841,831]} 1. e4 {[%emt 0:00:03]} c5 {[%emt 0:00:04]} 2. Nf3 {[%emt 0:00:07]} e6 {[%emt 0:00:02]} 3. d4 {[%emt 0:00:10]} cxd4 {[%emt 0:00:07]} 4. Nxd4 {[%emt 0:00:06]} Nc6 {[%emt 0:00:04]} 5. Nc3 {[%emt 0:00:05]} Qc7 {[%emt 0:00:06]} 6. a3 {[%emt 0:00:11]} a6 {[%emt 0:00:09]} 7. Be3 {[%emt 0:00:06]} b5 {[%emt 0:00:12]} 8. Nxc6 {[%emt 0:00:06]} dxc6 {[%emt 0:00:05]} 9. Qf3 {[%emt 0:00:23]} e5 {[%emt 0:00:16]} 10. Be2 {[%emt 0:02:03]} h5 {[%emt 0:14:11] White is slightly better.} 11. h3 {[%emt 0:02:50]} Nf6 {[%emt 0:00:41][%cal Oc8g4]} 12. Bg5 {[%emt 0:07:24]} Be7 {[%emt 0:00:43]} 13. a4 {[%emt 0:03:09][%cal Ra4b5] axb5 is the strong threat.} Rb8 {[%emt 0:06:14]} 14. O-O {[%emt 0:03:49]} Nd7 {[%emt 0:07:39]} (14... O-O $14) 15. Bxe7 $16 {[%emt 0:02:38]} Kxe7 {[%emt 0:00:39][%cal Be8e7,Be7f8,Bf8g7][%mdl 32]} 16. axb5 {[%emt 0:01:21]} axb5 {[%emt 0:00:14]} 17. Qe3 {[%emt 0:02:24]} Kf8 {[%emt 0:05:32]} 18. Kh1 {[%emt 0:22:10]} (18. Rfd1 $16) 18... Qb6 {[%emt 0:12:36]} 19. Qg5 {[%emt 0:05:59][%cal Of2f4]} f6 {[%emt 0:04:44]} 20. Qh4 {[%emt 0:01:01][%cal Of2f4] White is much more active.} g5 {[%emt 0:03:45]} 21. Qg3 {[%emt 0:00:06]} h4 {[%emt 0:00:10]} 22. Qf3 {[%emt 0:09:27]} Kg7 {[%emt 0:00:28]} 23. Nd1 {[%emt 0:00:08]} Nf8 {[%emt 0:20:48]} 24. Qa3 {[%emt 0:01:45]} b4 {[%emt 0:00:23]} 25. Qa7+ {[%emt 0:02:35]} Qxa7 {[%emt 0:00:44]} 26. Rxa7+ {[%emt 0:00:01]} Rb7 {[%emt 0:00:38]} 27. Rxb7+ {[%emt 0:12:16]} Bxb7 {[%emt 0:00:12]} 28. Bg4 {[%emt 0:01:22]} Kf7 {[%emt 0:08:24]} (28... c5 $14) 29. Ne3 {[%emt 0:00:12]} Ne6 {[%emt 0:00:05]} 30. Rd1 {[%emt 0:04:51]} Nc5 {[%emt 0:00:17][%cal Ob7c8] Repels Rd7+} 31. Rd6 {[%emt 0:01:06]} Kg7 {[%emt 0:03:21]} (31... b3 $16 {was worth a try.}) 32. Nf5+ {[%emt 0:04:03]} Kg6 {[%emt 0:01:57]} 33. f3 {[%emt 0:04:53]} Ra8 {[%emt 0:06:18]} 34. Kh2 {[%emt 0:01:25]} Rf8 {[%emt 0:02:55]} (34... Ra2 $16 {might work better.} 35. b3 Ra6 (35... Rxc2 $2 {is the wrong capture.} 36. Rd8 $18)) 35. Ne7+ $18 {[%emt 0:00:30]} Kg7 {[%emt 0:00:04]} 36. Nxc6 {[%emt 0:00:29]} ({Better is} 36. b3 $1 $18) 36... b3 $2 {[%emt 0:00:03] [#] A mistake that costs the game.} ({Black should try} 36... Bxc6 $14 37. Rxc6 Na4) 37. Nb4 $1 {[%emt 0:02:15]} bxc2 {[%emt 0:02:38]} (37... Rf7 $142 38. cxb3 Rf8) 38. Nxc2 {[%emt 0:00:01]} Bc8 {[%emt 0:00:01]} 39. b4 {[%emt 0:00:53][%cal Bb2b4,Bb4b5,Bb5b6][%mdl 32]} Nb3 {[%emt 0:00:20]} 40. b5 {[%emt 0:01:22]} Bxg4 {[%emt 0:00:11]} 41. hxg4 {[%emt 0:00:01] KRN-KRN. White is clearly winning.} (41. fxg4 Nc5 $11) 41... Rf7 {[%emt 0:01:19]} 42. b6 {[%emt 0:00:26]} Nc5 {[%emt 0:00:20]} 43. Ne3 {[%emt 0:00:28]} Nb7 {[%emt 0:00:07]} 44. Rc6 {[%emt 0:00:08]} Kg6 {[%emt 0:00:04]} 45. Nd5 {[%emt 0:01:11]} (45. Nf5 $142 h3 46. Rc7 (46. gxh3 Rh7 $18) (46. Kxh3 Rh7+ 47. Kg3 Nd8 $18) 46... hxg2 47. Ne7+ (47. Kxg2 Nd8 $18) 47... Kh7 48. Rxb7) 45... Kg7 {[%emt 0:00:05]} 46. Kg1 {[%emt 0:00:21] Weighted Error Value: White=0.17 (very precise) /Black=0.33.  Mistake:       	White=2     	Black=6      Inaccurate:     	White=1     	Black=5      OK:         	White=14    	Black=13     Best:        	White=4     	Black=1      Strong:       	White=1     	---} 1-0